Cogmind - Beta 14 @@@ ROGUE MODE // 2024.12.13 @ 00:53:19 Player: 5taquitos Result: Destroyed by X-67 Chaingunner with Heavy Machine Gun Performance ------------- Evolutions (4) 2000 Regions Visited (7) 1400 Robots Destroyed (56) 280 Value Destroyed (1857) 1857 Prototype IDs (1) 20 Alien Tech Used (0) 0 Bonus (34) 34 TOTAL SCORE: 5591 Bonus ------- High Alert Combat Kills 34 Cogmind --------- Core Integrity 0/850 Matter 184/550 Energy 76/100 System Corruption 0% Temperature Cool (0) Movement Core (100) Ox1 Location -6/Factory Parts ------- > --- POWER (2) -------- (None) > --- PROPULSION (4) --- (None) > --- UTILITY (5) ------ Matter Compressor > --- WEAPON (4) ------- (None) > --- INVENTORY (5) ---- Makeshift Leg Terrain Scanner Peak State ------------ > --- POWER ------------ Improved Ion Engine > --- PROPULSION ------- Cesium-ion Thruster Cesium-ion Thruster Cooled VTOL Module Nuclear Pulse Thruster > --- UTILITY ---------- Advanced Heat Sink Matter Compressor Improved Weapon Shielding Force Field > --- WEAPON ----------- Battle Rifle Battle Rifle > --- INVENTORY -------- Light Nuclear Core Aluminum Leg Aluminum Leg Makeshift Leg Cesium-ion Thruster [Rating: 41] Favorites ----------- Power Ion Engine Engine Ion Engine Power Core Light Nuclear Core Propulsion Aluminum Leg Treads Improved Treads Leg Aluminum Leg Flight Unit Cesium-ion Thruster Utility Small Storage Unit Device Heat Sink Storage Small Storage Unit Protection Light Armor Plating Weapon Minigun Energy Gun Small Laser Ballistic Gun Minigun Launcher Mini Grenade Launcher Special Weapon Welding Torch Build | -11 -10 -9 -8 -7 -7 -7 -6 ------- Run | Yrd Mat Mat Mat Fac Low Low Fac Slots Evolved 8 | . . 2 2 2 . . 2 Power 1 | . . 1 . . . . . Propulsion 2 | . . 1 . 1 . . . Utility 3 | . . . 1 . . . 2 Weapon 2 | . . . 1 1 . . . Parts Attached 78 | 6 5 9 27 3 13 . 15 Power 19 | 1 1 4 7 1 3 . 2 Engine 15 | 1 1 4 6 1 2 . . Core 4 | . . . 1 . 1 . 2 Reactor . | . . . . . . . . Propulsion 23 | 2 2 4 4 . 5 . 6 Treads 6 | 2 2 1 . . 1 . . Leg 9 | . . 3 4 . . . 2 Wheel . | . . . . . . . . Hover . | . . . . . . . . Flight 8 | . . . . . 4 . 4 Utility 13 | 1 1 . 5 1 2 . 3 Device 5 | . . . 2 1 1 . 1 Storage 4 | 1 1 . 1 . . . 1 Processor . | . . . . . . . . Hackware . | . . . . . . . . Protection 4 | . . . 2 . 1 . 1 Artifact . | . . . . . . . . Weapon 23 | 2 1 1 11 1 3 . 4 Energy Gun 2 | 1 . . . . . . 1 Energy Cannon . | . . . . . . . . Ballistic Gun 14 | 1 . 1 9 1 1 . 1 Ballistic Cannon . | . . . . . . . . Launcher 6 | . 1 . 2 . 2 . 1 Special Weapon 1 | . . . . . . . 1 Impact Weapon . | . . . . . . . . Slashing Weapon . | . . . . . . . . Piercing Weapon . | . . . . . . . . Special Melee Weapon . | . . . . . . . . Unidentified Prototypes 1 | . . . . . . . 1 Parts Lost 48 | . . 3 11 6 11 . 17 Power 11 | . . 1 3 2 2 . 3 Propulsion 16 | . . 1 3 3 2 . 7 Utility 9 | . . . 3 . 3 . 3 Weapon 12 | . . 1 2 1 4 . 4 Highest Loss Streak 17 | . . 2 7 4 5 . 17 To Critical Strikes 1 | . . . . . 1 . . Average Slot Usage (%) 73 | . 97 95 86 64 43 69 51 Engine 11 | . 14 21 11 9 5 7 4 Core 1 | . . . 2 . 3 7 . Treads 8 | . 28 25 . . 1 . . Leg 8 | . . 3 25 8 . . . Flight 4 | . . . . . 12 23 18 Device 5 | . . . 2 22 6 7 8 Storage 11 | . 25 22 14 . . . 4 Protection 1 | . . . 4 . . 7 3 Energy Gun 2 | . 14 2 . . . . . Ballistic Gun 11 | . 7 8 18 23 5 7 8 Launcher 5 | . 7 11 5 . 6 7 . Peak Build Rating 41 | 6 10 13 24 25 27 27 41 Average Rating 15 | 4 8 11 17 20 14 27 28 On Entrance 15 | . 6 10 11 21 19 27 27 Naked Turns . | . . . . . . . . Heaviest Build 32 | 13 17 21 32 27 18 18 26 Greatest Support 66 | 40 46 66 35 30 23 15 21 Greatest Overweight (x) 6 | . . 6 1 6 5 1 3 Average Overweight (x) . | . . . . 2 . 1 . Largest Inventory Capacity 8 | 8 8 8 8 5 5 5 5 Average Capacity 6 | 7 8 8 7 5 5 5 5 Most Carried 8 | 4 8 8 8 4 5 5 5 Average Carried 4 | 1 6 7 6 3 2 5 4 Final Capacity 8 | 8 8 8 5 5 5 5 5 Final Carried 8 | 4 8 7 4 3 5 5 2 Class Distribution -------------------- 51% | Mutant 15% | Bomber 9% | Scavenger-Sprinter 9% | Scavenger-Mutant 7% | Scavenger-Gunner 7% | Gunner Dominant Class ---------------- Mutant | -10/Materials Mutant | -9/Materials Bomber | -8/Materials Gunner | -7/Factory Mutant | -7/Lower Caves Mutant | -7/Lower Caves Scavenger-Mutant | -6/Factory Resources | -11 -10 -9 -8 -7 -7 -7 -6 ----------- Run | Yrd Mat Mat Mat Fac Low Low Fac Matter Collected 1749 | 212 70 211 575 131 509 . 41 Remotely . | . . . . . . . . Salvage Created 1764 | . 197 267 741 144 389 . 26 Parts 107 | . 20 22 36 7 19 . 3 Haulers Intercepted . | . . . . . . . . Recyclers Shooed 2 | . 1 . . 1 . . . Parts Field Recycled . | . . . . . . . . Retrieved Matter . | . . . . . . . . Parts Self-Destructed 7 | . . . . . 7 . . Prevented . | . . . . . . . . Kills | -11 -10 -9 -8 -7 -7 -7 -6 ------- Run | Yrd Mat Mat Mat Fac Low Low Fac Combat Hostiles Destroyed 46 | . 5 12 16 3 10 . . Guns 17 | . 5 1 8 2 1 . . AOE 29 | . . 11 8 1 9 . . Classes Destroyed 9 | . 5 2 2 . . . . Worker 2 | . . 1 . . . . 1 Builder 2 | . . . 2 . . . . Recycler 3 | . 1 . 1 1 . . . Operator 1 | . 1 . . . . . . Watcher 2 | . 1 . 1 . . . . Swarmer 11 | . 3 3 . 3 2 . . Grunt 23 | . 2 7 11 . 3 . . Brawler 2 | . . . 1 . 1 . . Sentry 7 | . . 2 4 . 1 . . Packrat 1 | . . . . . 1 . . Wasp 2 | . . . . . 2 . . Thug 1 | . . . . . 1 . . Best Kill Streak 8 | . 3 6 8 3 4 . 1 Combat Bots Only 7 | . 2 4 7 2 4 . . Max Kills in Single Turn 3 | . 1 2 3 1 2 . 1 Gunslinging . | . . . . . . . . Exploded 2 | . . 2 2 1 2 . . Melee . | . . . . . . . . Uniques/NPCs Destroyed . | . . . . . . . . Combat | -11 -10 -9 -8 -7 -7 -7 -6 -------- Run | Yrd Mat Mat Mat Fac Low Low Fac Hostile Shots Fired 464 | . 51 61 117 30 89 4 112 Missed 157 | . 14 28 31 12 32 1 39 Damage Taken 5681 | . 430 488 1487 600 793 47 1836 Core 1741 | . 91 101 304 118 254 . 873 Absorbed by Shields 119 | . . . . . . . 119 Redirected to Shielding 73 | . . . . . . 11 62 Regen/Repaired (Parts) 24 | . . . . . . . 24 Core Remaining (%) 65 | 100 63 74 44 . . 46 . Volleys Fired 135 | . 27 24 33 9 23 . 19 Largest 4 | . 2 2 3 4 3 . 2 Hottest 96 | . 70 70 86 96 73 . 69 Shots Fired 258 | . 53 39 67 27 43 . 29 Gun 204 | . 49 24 52 27 25 . 27 Cannon . | . . . . . . . . Launcher 53 | . 4 15 15 . 18 . 1 Special 1 | . . . . . . . 1 Kinetic 171 | . 22 19 52 27 25 . 26 Thermal 34 | . 27 5 . . . . 2 Explosive 53 | . 4 15 15 . 18 . 1 Electromagnetic . | . . . . . . . . Robot Hit Streak 7 | . 4 7 5 3 6 . 5 Robot Miss Streak 11 | . 4 4 3 11 4 . 2 Penetration Max . | . . . . . . . . Secondary Targets 2 | . 1 . . 1 . . . Max Gunslinging Chain 1 | . 1 . . 1 . . . Shots Hit Robots 140 | . 25 25 37 8 28 . 17 Core Hits 111 | . 11 23 35 5 30 . 7 Critical Kills 1 | . . . 1 . . . . Critical Parts Destroyed 2 | . . 1 1 . . . . Critical Strikes 3 | . . 1 2 . . . . Destroy 3 | . . 1 2 . . . . Melee Attacks . | . . . . . . . . Impact . | . . . . . . . . Slashing . | . . . . . . . . Piercing . | . . . . . . . . Sneak Attacks . | . . . . . . . . Combat Hostiles . | . . . . . . . . Follow-up Attacks . | . . . . . . . . Damage Inflicted 4682 | . 483 1024 1511 197 1235 . 232 Guns 1584 | . 279 161 539 136 254 . 215 Cannons . | . . . . . . . . Explosions 3052 | . 204 863 943 61 981 . . Melee . | . . . . . . . . Ramming 44 | . . . 29 . . . 15 Kinetic 1411 | . 138 129 539 136 254 . 215 Thermal 175 | . 141 32 . . . . 2 Explosive 3052 | . 204 863 943 61 981 . . Electromagnetic . | . . . . . . . . Impact . | . . . . . . . . Slashing . | . . . . . . . . Piercing . | . . . . . . . . Highest Corruption . | . . . . . . . . Average Corruption . | . . . . . . . . Corruption Purged . | . . . . . . . . Corruption Blocked . | . . . . . . . . Overload Shots . | . . . . . . . . Overflow Damage 229 | . 15 65 35 71 43 . . Projectiles . | . . . . . . . . Explosions 229 | . 15 65 35 71 43 . . Melee . | . . . . . . . . Knockbacks 1 | . . . 1 . . . . Impact 1 | . . . 1 . . . . Kinetic . | . . . . . . . . Secondary . | . . . . . . . . Self-Inflicted Damage 806 | . 67 72 144 335 181 . 7 Shots 21 | . 2 5 5 4 5 . . Rammed 3 | . . 1 . . . . 2 Targets Rammed 18 | . . 1 15 . . . 2 Kicked 15 | . . . 15 . . . . Crushed . | . . . . . . . . Highest Temperature 213 | . 108 42 213 . 23 . 11 Average Temperature 44 | . 47 17 57 . 8 . 9 Received Heat Transfer 1443 | . 108 171 657 . 180 45 282 Siege Activations . | . . . . . . . . Robots Corrupted . | . . . . . . . . Combat Hostiles . | . . . . . . . . Parts Fried . | . . . . . . . . Impact Corruptions . | . . . . . . . . Robots Melted . | . . . . . . . . Combat Hostiles . | . . . . . . . . Parts Melted 1 | . 1 . . . . . . Heat Transferred 425 | . 325 75 . . . . 25 Parts Sabotaged . | . . . . . . . . Parts Stolen . | . . . . . . . . Parts Stripped . | . . . . . . . . Power Chain Reactions . | . . . . . . . . Alert | -11 -10 -9 -8 -7 -7 -7 -6 ------- Run | Yrd Mat Mat Mat Fac Low Low Fac Peak Influence 471 | . 180 429 471 264 . . 46 Initial 126 | . . 76 126 104 . . 39 Average 194 | . 89 269 277 195 . . 28 Maximum Alert Level 2 | . . 2 2 1 . . . Low Security (%) 51 | 100 100 22 23 45 . . 100 Level 1 43 | . . 56 73 54 . . . Level 2 5 | . . 20 3 . . . . Level 3 . | . . . . . . . . Level 4 . | . . . . . . . . Level 5 . | . . . . . . . . High Security . | . . . . . . . . Max Security . | . . . . . . . . Squads Dispatched 13 | . 1 3 2 1 . . 6 Investigation 2 | . 1 1 . . . . . Extermination . | . . . . . . . . Reinforcement 11 | . . 2 2 1 . . 6 Assault . | . . . . . . . . Garrison . | . . . . . . . . Intercept . | . . . . . . . . Searches Triggered . | . . . . . . . . Construction Impeded 3 | . . 1 1 . . . 1 Haulers Reinforced . | . . . . . . . . Active Scanning Responses . | . . . . . . . . Cargo Convoy Interrupts . | . . . . . . . . Stealth | -11 -10 -9 -8 -7 -7 -7 -6 --------- Run | Yrd Mat Mat Mat Fac Low Low Fac Distress Signals 3 | . . 1 1 . . . 1 Communications Jammed . | . . . . . . . . Distress Signals . | . . . . . . . . Times Spotted 81 | . 13 14 18 5 11 4 16 Peak Tracking Total 13 | . 5 5 7 3 4 4 13 Tactical Retreats 2 | . . . . 1 . . 1 Traps | -11 -10 -9 -8 -7 -7 -7 -6 ------- Run | Yrd Mat Mat Mat Fac Low Low Fac Traps Triggered 9 | . 2 1 4 . . . 2 Indirectly . | . . . . . . . . Trap Hack Attempts . | . . . . . . . . Triggered . | . . . . . . . . Disarmed . | . . . . . . . . Reprogrammed . | . . . . . . . . Reused . | . . . . . . . . Traps Extracted . | . . . . . . . . Installed . | . . . . . . . . Triggered . | . . . . . . . . Machines | -11 -10 -9 -8 -7 -7 -7 -6 ---------- Run | Yrd Mat Mat Mat Fac Low Low Fac Machines Disabled 8 | . . 2 2 4 . . . Max in Single Turn 4 | . . 2 1 4 . . . Machines Repaired . | . . . . . . . . Machines Dismantled . | . . . . . . . . Machines Sabotaged . | . . . . . . . . Overloaded Fab Kills . | . . . . . . . . Hacking | -11 -10 -9 -8 -7 -7 -7 -6 --------- Run | Yrd Mat Mat Mat Fac Low Low Fac Machines Accessed 7 | . 3 . 3 . . . 1 Terminals 5 | . 3 . 2 . . . . Fabricators . | . . . . . . . . Repair Stations 2 | . . . 1 . . . 1 Recycling Units . | . . . . . . . . Scanalyzers . | . . . . . . . . Garrison Access . | . . . . . . . . Total Hacks 12 | . 6 . 4 . . . 2 Successful 3 | . 1 . . . . . 2 Failed 9 | . 5 . 4 . . . . Catastrophic 1 | . 1 . . . . . . Database Lockouts . | . . . . . . . . Manual . | . . . . . . . . Terminals 9 | . 6 . 3 . . . . Fabricators . | . . . . . . . . Repair Stations 3 | . . . 1 . . . 2 Recycling Units . | . . . . . . . . Scanalyzers . | . . . . . . . . Garrison Access . | . . . . . . . . Terminal Hacks 1 | . 1 . . . . . . Emergency Access Points 1 | . 1 . . . . . . Fabricator Hacks . | . . . . . . . . Repair Station Hacks 2 | . . . . . . . 2 Scan Component 1 | . . . . . . . 1 Repair 1 | . . . . . . . 1 Recycling Unit Hacks . | . . . . . . . . Scanalyzer . | . . . . . . . . Garrison Access Hacks . | . . . . . . . . Unauthorized Hacks . | . . . . . . . . Terminals . | . . . . . . . . Fabricators . | . . . . . . . . Repair Stations . | . . . . . . . . Recycling Units . | . . . . . . . . Scanalyzers . | . . . . . . . . Garrison Access . | . . . . . . . . Data Cores Recovered 1 | . 1 . . . . . . Used . | . . . . . . . . Hacking Detections 7 | . 3 . 3 . . . 1 Full Trace Events . | . . . . . . . . Feedback Events . | . . . . . . . . Feedback Blocked . | . . . . . . . . Robot Schematics Acquired . | . . . . . . . . Robots Built . | . . . . . . . . Authchips . | . . . . . . . . Time . | . . . . . . . . Total Robot Build Rating . | . . . . . . . . Part Schematics Acquired . | . . . . . . . . Parts Built . | . . . . . . . . Authchips . | . . . . . . . . Time . | . . . . . . . . Total Part Build Rating . | . . . . . . . . Parts Repaired 1 | . . . . . . . 1 Time 38 | . . . . . . . 38 Parts Recycled . | . . . . . . . . Recycled Matter . | . . . . . . . . Retrieved Matter . | . . . . . . . . Retrieved Components . | . . . . . . . . Parts Scanalyzed . | . . . . . . . . Part Schematics Acquired . | . . . . . . . . Parts Damaged . | . . . . . . . . Bothacking | -11 -10 -9 -8 -7 -7 -7 -6 ------------ Run | Yrd Mat Mat Mat Fac Low Low Fac Used RIF Installer . | . . . . . . . . Robots Hacked . | . . . . . . . . Non-combat . | . . . . . . . . Combat . | . . . . . . . . Robot Hacks Applied . | . . . . . . . . Relay Couplers Released . | . . . . . . . . Fabnet Peak Effective % . | . . . . . . . . Robots Rewired . | . . . . . . . . Allies Hacked . | . . . . . . . . Hacks Repelled . | . . . . . . . . Allies | -11 -10 -9 -8 -7 -7 -7 -6 -------- Run | Yrd Mat Mat Mat Fac Low Low Fac Total Allies . | . . . . . . . . Largest Group . | . . . . . . . . Highest-Rated Group . | . . . . . . . . Highest-Rated Ally . | . . . . . . . . Total Orders . | . . . . . . . . Ally Attacks . | . . . . . . . . Total Damage . | . . . . . . . . Kills . | . . . . . . . . Allies Corrupted . | . . . . . . . . Allies Melted . | . . . . . . . . Intel | -11 -10 -9 -8 -7 -7 -7 -6 ------- Run | Yrd Mat Mat Mat Fac Low Low Fac Robot Analysis Total . | . . . . . . . . Derelict Logs Recovered 2 | . . . . . 2 . . Drone Launches . | . . . . . . . . Drone Recoveries . | . . . . . . . . Exploration | -11 -10 -9 -8 -7 -7 -7 -6 ------------- Run | Yrd Mat Mat Mat Fac Low Low Fac Turns Passed 3030 | 77 393 442 820 259 751 9 279 Spaces Moved 2465 | 43 187 227 518 103 1092 9 286 Core 163 | 5 . 2 3 41 99 . 13 Treads 541 | 38 187 202 . . 114 . . Legs 600 | . . 23 515 62 . . . Wheels . | . . . . . . . . Hover . | . . . . . . . . Flight 1161 | . . . . . 879 9 273 Fastest Speed 26 | 50 160 120 50 120 26 109 26 Average Speed 99 | 147 160 157 129 222 60 109 51 Slowest Speed 350 | 160 160 350 190 350 300 109 200 Overloaded Moves . | . . . . . . . . Propulsion Burnouts . | . . . . . . . . Robots Hopped . | . . . . . . . . Cave-ins Triggered . | . . . . . . . . Exploration Rate (%) 28 | 3 45 28 51 3 89 4 5 Regions Visited 7 Branch Regions 2 Pre-discovered Areas . | . . . . . . . . Known Exits Taken . | . . . . . . . . Unknown Exits Taken 7 | 1 1 1 1 1 1 1 . Scrap Searched 3 | . . . . . 3 . . Spaces Dug . | . . . . . . . . Terrain Destroyed 420 | . 43 101 90 27 153 . 6 Melee . | . . . . . . . . Projectile . | . . . . . . . . AOE 420 | . 43 101 90 27 153 . 6 Terrain Rammed . | . . . . . . . . Walls Destroyed . | . . . . . . . . Machines Disabled . | . . . . . . . . Actions | -11 -10 -9 -8 -7 -7 -7 -6 --------- Run | Yrd Mat Mat Mat Fac Low Low Fac Total 2808 | 56 227 272 609 117 1132 8 387 Wait 45 | . . 4 . 3 . . 38 Move 2458 | 42 186 226 517 102 1091 8 286 Hop . | . . . . . . . . Pick Up 33 | 8 5 4 9 . 5 . 2 Fast Attach 36 | 2 1 2 11 2 10 . 8 Attach 27 | 4 . 5 8 1 3 . 6 Detach 1 | . . . 1 . . . . Swap 15 | . 4 2 8 . . . 1 Drop 17 | . 4 4 7 . . . 2 Fire 135 | . 27 24 33 9 23 . 19 Melee . | . . . . . . . . Ram 2 | . . . . . . . 2 Kick 15 | . . . 15 . . . . Crush 1 | . . 1 . . . . . Escape Stasis 23 | . . . . . . . 23 Rewire . | . . . . . . . . Trap . | . . . . . . . . Miscellaneous . | . . . . . . . . Route ------- -11/Scrapyard -10/Materials (discovered 3 exits: [*Mat x2] / [*Min]) -9/Materials -8/Materials -7/Factory -7/Lower Caves -7/Lower Caves -6/Factory (discovered 1 exit: Fac) History --------- Turn | Location | Event 2 | -11/Scrapyard | Met Revision 17 8 | -11/Scrapyard | Discovered new exit (range 15) 78 | -11/Scrapyard | Entered Materials 99 | -10/Materials | Discovered new exit (range 16) 333 | -10/Materials | Build established: Mutant 392 | -10/Materials | Discovered new exit (range 12) 448 | -10/Materials | Discovered new exit (range 10) 471 | -10/Materials | Entered another Materials area 471 | -9/Materials | Evolved 2 slots: Power x1, Propulsion x1 877 | -9/Materials | Discovered new exit (range 16) 913 | -9/Materials | Entered another Materials area 913 | -8/Materials | Evolved 2 slots: Utility x1, Weapon x1 1143 | -8/Materials | Destroyed 7 combat bots 1214 | -8/Materials | Build established: Bomber 1575 | -8/Materials | Core integrity fell below 50% 1601 | -8/Materials | Lost 7 parts (1p3n2u1w) 1698 | -8/Materials | Discovered new exit (range 12) 1733 | -8/Materials | Entered Factory 1733 | -7/Factory | Evolved 2 slots: Propulsion x1, Weapon x1 1883 | -7/Factory | Lost 4 parts (1p2n1w) 1897 | -7/Factory | Discovered new exit (range 16) 1992 | -7/Factory | Entered Lower Caves 1994 | -7/Lower Caves | Attracted the attention of an 0b10 checkpoint 2039 | -7/Lower Caves | Lost 5 parts (1p2u2w) 2295 | -7/Lower Caves | Build established: Mutant 2375 | -7/Lower Caves | Ambushed by wild Derelicts 2418 | -7/Lower Caves | Lost 3 parts (1p1n1w) 2440 | -7/Lower Caves | Learned location of 1 exit from Factory 2469 | -7/Lower Caves | Learned Factory garrison access intel 2551 | -7/Lower Caves | Core integrity fell below 50% 2737 | -7/Lower Caves | Discovered new exit (range 5) 2743 | -7/Lower Caves | Entered another Lower Caves area 2745 | -7/Lower Caves | Discovered new exit (range 8) 2752 | -7/Lower Caves | Entered Factory 2752 | -6/Factory | Evolved 2 slots: Utility x2 2753 | -6/Factory | Identified exit to Factory 2754 | -6/Factory | Loaded intel: 4 garrison access locations 2797 | -6/Factory | Repaired Cesium-ion Thruster 3020 | -6/Factory | Core integrity fell below 50% 3029 | -6/Factory | Core integrity fell below 20% 3031 | -6/Factory | Destroyed by X-67 Chaingunner with Heavy Machine Gun Last Messages --------------- 03003_ ALERT: Hostile activity reported, dispatching reinforcements to area. 03004_ U-05 Engineer lays Concrete. 03009_ Acquired Hvy. Laser. 03011_ Acquired Imp. Medium Armor Plating. 03013_ R-10 Processor collects Terrain Scan Processor. 03019_ Slammed into G-50 Soldier. 03019_ Hvy. Laser broken. 03019_ Destabilizing: Short circuit. 03023_ Imp. Medium Armor Plating severed. 03023_ U-05 Engineer builds a Wall. 03023_ Cesium-ion Thruster destroyed. 03023_ Critical hit (Blast). 03023_ Knocked back. 03023_ Acquired 6 matter. 03026_ Cesium-ion Thruster destroyed. 03027_ Broken Hvy. Laser severed. 03028_ Penetrated by Slug. 03028_ Knocked back. Map ----- +----------------------------------------------------+ | ?????????????????????????????????????????????????? | | ?????????????????????????????????????????????? ??? | | ???????????????????????????????????????????? ?? | | ?????????????????????????????????????????? ?? | | ?????????????????????????????????????????? ?? | | ?????????????????????????????????????????? "? | | ??????????????????????????????????????????? ^"? | | ???????????????????????????????????????????# | | ???????????????????????????????????????????#^ "" | | ???????????????????????????????????????????# "" | | ?????????????????????????????############### "" | | ?????????????????????????????# ## | | ?????????????????????????????# ## | | ?????????????????????????????# ## ^ | | ?????????????????????????????# ## | | ?????????????????????????????# ## | | ?????????????????????????????# ## | | ?????????????????????????????# # | | ?????????????????????????????# # | | ?????????????????????????????# + | | ?????????????????????????????# # | | ?????????????????????????????# # ## | | ?????????????????????????????# % # # | | ?????????????##########################+### ## | | ?????????? % k | | ?????????? @ cc [ % R % | | ?????????? % ^^ w g | | ????????????""" """" % x ^ gH g % % | | ????????????????"""" x ^ ! g H | | ?????????????????""" k##############;#/###"###### | | ?????????????????""" ??????????# #??# | | ?????????????????""" ???????????# #??# | | ?????????????????"""g ???????????# #??? | | ????????????????? h ????????????# !! #??? | | ????????????????? ?????????????# #??? | | ????????????????? ?????????????# #??? | | ????????????????###??????????????# #??? | | ?????????????????????????????????# #??? | | ?????????????????????????????????# #??? | | ?????????????????????????????????# #??? | | ?????????????????????????????????# #??? | | ?????????????????????????????????# #??? | | ?????????????????????????????????##############??? | | ?????????????????????????????????????????????????? | | ?????????????????????????????????????????????????? | | ?????????????????????????????????????????????????? | | ?????????????????????????????????????????????????? | | ?????????????????????????????????????????????????? | | ?????????????????????????????????????????????????? | | ?????????????????????????????????????????????????? | +----------------------------------------------------+ Best States ------------- Heat Dissipation 58 Energy Generation 23 Energy Capacity 650 Matter Stores 300 Matter Capacity 550 Sight Range 16 Terrain Scan Density 10 Armor Coverage 225 Weapon Shielding 66 Evasion (%) 64 Recoil Reduction 3 Item Schematics ----------------- None Robot Schematics ------------------ None Fabricated ------------ Nothing Alien Tech Used ----------------- None Achievements -------------- None Challenges ------------ None Game ------ Seed BoltPotentialPit Manual? 0 Play Time 00:53:48 Cumulative 18.4 hours Start 2024.12.13 @ 00:00:42 End 2024.12.13 @ 00:53:19 Sessions 1 Manual Loads 0 Difficulty Rogue Special Mode None Game No. 25 Rogue 25 Adventurer 0 Explorer 0 Win Type - Total 0 Types 0/0/0/0/0/0/0/0/0 Lore% 12 Gallery% 20 Achievement% 22 Wizard Run 0 Options --------- Layout 1 ASCII 0 Keyboard 0 Movement Mouse Keybinds 0 Fullscreen 1 Font 16/SmallcapsGlow Map View 55x38 Zoom Use 0% Tactical HUD 1 Map Filters NONE Filters NONE Steam 1 RUN: c27aefd8-6264-48e3-a727-af0c9f1fac10